Workbook

Sheet Prestation
A1: Devis | F1: Coût au Km
A2: Désignation | B2: Qté | C2: PU | D2: Total | F2: Peugeot 504 | J2: Forfaits | K2: Coût au Km | N2: Base calcul A MASQUER
A3: Estimatif Km | B3: 100 | C3: =G6 -> 2.58 € | D3: =B3*C3 -> 258.29 € | F3: Charges Fixe | G3: =Budget!B44 -> 1.13 | J3: Peugeot 504 | K3: =K4+K5+K6 -> 41.13 € | N3: Estimatif km prestation | P3: 80 | Q3: km | R3: 1.3 | S3: 104
A4: Estimatif Temps Travail | B4: 2 | C4: =K5 -> 20.00 € | D4: =B4*C4 -> 40.00 € | F4: Charge Variable | G4: =Budget!B43 -> 1.45 | J4: Charges Fixes | K4: =G3 -> 1.13 € | N4: Chauffeur | P4: 7 | Q4: h | R4: 20 | S4: 140
A5: Total Charges | D5: =SUM(D3:D4) -> 298 € | J5: Prestation Chauffeur | K5: 20.00 € | N5: Charges fixes | P5: 1 | Q5: Ft. | R5: 250 | S5: 250
A6: Remise | B6: 0.00% | C6: =(D3+D4)*B6 -> 0.00 € | D6: =D5-C6 -> 298 € | F6: Total | G6: =SUM(G3:G5) -> 2.58 € | J6: Lavage Véhicule | K6: 20.00 € | N6: Panier confort | P6: 1 | Q6: Ft. | R6: 50 | S6: 50
A7: Panier Confort | B7: 1 | C7: 50.00 € | D7: =B7*C7 -> 50 € | H7: =80*G6 -> 206.63 € | N7: Lavage véhicule | P7: 1 | Q7: Ft. | R7: 20 | S7: 20
A8: Marge | C8: 30% | D8: =D6*C8 -> 89 €
A9: Total 504 | D9: =D6+D7+D8 -> 438 € | O9: total non margé | S9: 564
A10: Total MG | D10: =D9 -> 438 €
O11: marge | P11: 0.3 | S11: 169.2
A12: Forfaits | B12: Montant | O12: Ajustement forfait | S12: -153.2
A13: Location avec Chauffeur: Forfait 504 Peugeot | B13: =D9 -> 438 € | J13: MG | K13: =Budget!B43+Budget!B44 -> 2.58 € | O13: Prix de vente | S13: 580
A14: Location avec Chauffeur: Forfait MG | B14: =D10 -> 438 € | J14: Panier Confort | K14: =Budget!B45 -> 0.38 €
J18: Estimatif km prestation | K18: 104 | L18: =D3-K18 -> 154.29
J19: Chauffeur | K19: 140 | L19: =D4-K19 -> -100.00
J20: Charges fixes | K20: 250 | L20: =D7-K20 -> -200.00
H21: =K23-D5 -> 265.71 | J21: Panier confort | K21: 50
J22: Lavage véhicule | K22: 20
K23: =SUM(K18:K22) -> 564

Sheet Client
A1: Réf | B1: Civilité | C1: Nom Prénom | D1: Adresse | E1: Code Postal | F1: Ville | G1: Tél: | H1: Mail | I1: Date Evènement 1 | J1: Lieu de Départ1 | K1: Lieu d'Arrivée1 | L1: Heure Départ1 | M1: Heure Arrivée1 | N1: Total Heures1 | O1: Date Evènement 2 | P1: Lieu de Départ2 | Q1: Lieu d'Arrivée2 | R1: Heure de Départ2 | S1: Heure d'Arrivée2 | T1: Total Heures2 | U1: Annotation
A2: F-1 | B2: Mme | C2: Lauret | D2: 10 Rue des Melons | E2: 97 418 | F2: Plaine des Cafres | G2: 06 92 55 22 66 | H2: piment.gmail | I2: samedi 23 janvier 2021 | J2: La Montagne | K2: Saint-Denis Ville | L2: 12:00:00 | M2: 15:00:00 | N2: =ListClients[[#This Row],[Heure Arrivée1]]-ListClients[[#This Row],[Heure Départ1]] -> 03:00:00 | T2: =ListClients[[#This Row],[Heure d''Arrivée2]]-ListClients[[#This Row],[Heure de Départ2]] -> 00:00:00
A3: F-2 | B3: Mme | C3: Piment | D3: 55 rue des Papayes | E3: 97 413 | F3: Cilaos | G3: 06 92 55 44 77 | H3: piment.gmail | I3: dimanche 28 février 2021 | J3: Saint-louis | K3: Cilaos | L3: 14:00:00 | M3: 15:00:00 | N3: =ListClients[[#This Row],[Heure Arrivée1]]-ListClients[[#This Row],[Heure Départ1]] -> 01:00:00 | T3: =ListClients[[#This Row],[Heure d''Arrivée2]]-ListClients[[#This Row],[Heure de Départ2]] -> 00:00:00
A4: F-3 | B4: Mme | C4: Papangues Reine | D4: 5 rue des Daturas | E4: 97 429 | F4: Petite-Ile | G4: 06 92 34 56 78 | H4: papangues.Reine@gmail.com | I4: samedi 18 décembre 2021 | J4: Ravine Du Pont | K4: Eglise Centre-Ville | L4: 15:00:00 | M4: 15:30:00 | N4: =ListClients[[#This Row],[Heure Arrivée1]]-ListClients[[#This Row],[Heure Départ1]] -> 00:30:00 | T4: =ListClients[[#This Row],[Heure d''Arrivée2]]-ListClients[[#This Row],[Heure de Départ2]] -> 00:00:00

Sheet Charges
A1: Charges variables | B1: Montant | D1: Charges fixes | E1: Montant
A2: Matières premières: | B2: =B3 -> 0.50 € | D2: Véhicule | E2: =E3+E4 -> 80.00 € | G2: Chiffre d'affaire | H2: =Budget!H36 -> 5393.29
A3: Carburant 60€ pr 120km | B3: =60/120 -> 0.50 € | D3: Amortissement annuel | E3: 0.00 € | G3: Impôts libératoires (1,7%) | H3: =H2*1.7% -> 91.69 €
A4: Entretien véhicules | B4: =B5+B6+B7+B8+B9 -> 1,000.79 € | D4: Visites techniques | E4: 80.00 € | G4: Taxes CMA (0,48%
A5: Méca (0,25€/km) | B5: 0.25 € | D5: Assurannces véhicules | E5: =E6+E7 -> 2,400.00 €
A6: Carrosserie (0,5€/km) | B6: 0.50 € | D6: 504 | E6: 1,200.00 €
A7: huile (35€/10 000km) | B7: 0.01 € | D7: MG | E7: 1,200.00 €
A8: Pneumatiques (remplacement 20000km : 510€) | B8: =510/20000 -> 0.03 € | D8: Coût du financement des véhicules | E8: 0.00 €
A9: Lavage | B9: =50*20 -> 1,000.00 € | D9: Coût de structure | E9: =E10+E11 -> 450.00 €
A10: Frais de Personnel | B10: =B11+B12+B13+B14+B15 -> 687.00 € | D10: Frais administratifs (Comptable …) | E10: 200.00 €
A11: Salaire Horaire | B11: 20.00 € | D11: Frais commerciaux (Com, Repas…) | E11: 250.00 €
A12: Charges sociales 14.7% en 2022 | B12: 0.00 € | D12: Impôts Divers | E12: =E13+E14 -> 0.00 €
A13: Retraite complémentaire | B13: 547.00 € | D13: Impôts libératoires (1,7%)
A14: Formation professionnelle | B14: 120.00 € | D14: Taxes CMA (0,48% | E14: 0.00 €
A15: Frais déplacements | B15: 0.00 € | D15: Frais bancaires | E15: =E16+E17+E18 -> 244.21 €
A16: Total Charges Variables | B16: =B2+B4+B10 -> 1,688.29 € | D16: Gestion Compte | E16: 12.50 €
D17: Assurances | E17: =3.33*12 -> 39.96 €
D18: Assurances RC PRO | E18: 191.75 €
D19: Total charge fixe | E19: =E2+E5+E9+E12+E15 -> 3,174.21 €

Sheet Recettes
A1: Recette
A2: Désignation | B2: Montant

Sheet Budget
A1: Budget
A2: Dépenses | E2: Recettes | J2: Prévisionnel Km | K2: 3000 | P2: Budget Prévisionnel
A3: Désigation | B3: Qté | C3: PU | D3: Montant | E3: Désigation | F3: Qté | G3: PU | H3: Montant | J3: Prévisionnel Heures | K3: 150 | P3: Dépenses | R3: Recettes
A4: Charges Variables | D4: =D5+D7+D13 -> 8,465.00 € | E4: Recettes 504 | F4: 12 | G4: 800 | H4: =F4*G4 -> 9,600.00 € | P4: Désigation | Q4: Montant | R4: Désigation | S4: Montant
A5: Matières premières: | D5: =D6 -> 1,500.00 € | E5: Recettes MG | F5: 11 | G5: 800 | H5: =F5*G5 -> 8,800.00 € | P5: Charges (Fixes et Variables) | Q5: =D35 -> 13,006.71 €
A6: Carburant 60€ pr 120km | B6: =K2/120 -> 25 | C6: 60.00 € | D6: =B6*C6 -> 1,500.00 €
A7: Entretien véhicules | D7: =D8+D9+D10+D11+D12 -> 2,857.00 €
A8: Méca (0,25€/km) | B8: =K2 -> 3000 | C8: 0.25 € | D8: =B8*C8 -> 750.00 €
A9: Carrosserie (0,5€/km) | B9: =K2 -> 3000 | C9: 0.50 € | D9: =B9*C9 -> 1,500.00 €
A10: huile (35€/10 000km) | B10: =K2/10000 -> 0.3 | C10: 35.00 € | D10: =B10*C10 -> 10.50 €
A11: Pneumatiques (remplacement 20000km : 510€) | B11: =K2/20000 -> 0.15 | C11: 510.00 € | D11: =B11*C11 -> 76.50 €
A12: Lavage Véhicules | B12: 26 | C12: 20.00 € | D12: =B12*C12 -> 520.00 €
A13: Frais de Personnel | D13: =D14+D15+D16+D17+D18 -> 4,108.00 €
A14: Salaire Horaire | B14: 150 | C14: 20.00 € | D14: =B14*C14 -> 3,000.00 €
A15: Charges sociales 14.7% en 2022 | B15: 1 | C15: =D14*14.7% -> 441.00 € | D15: =B15*C15 -> 441.00 €
A16: Retraite complémentaire | B16: 1 | C16: 547.00 € | D16: =B16*C16 -> 547.00 €
A17: Formation professionnelle | B17: 1 | C17: 120.00 € | D17: =B17*C17 -> 120.00 €
A18: Frais déplacements | B18: 1 | C18: 0 | D18: =B18*C18 -> 0.00 €
A19: Charges Fixes | D19: =D20+D23+D26+D27+D30 -> 3,391.71 €
A20: Véhicule | D20: =D21+D22 -> 160.00 €
A21: Amortissement annuel | B21: 0 | C21: 0 | D21: =B21*C21 -> 0.00 €
A22: Visites techniques | B22: 2 | C22: 80.00 € | D22: =B22*C22 -> 160.00 €
A23: Assurannces véhicules | D23: =D24+D25 -> 2,400.00 €
A24: 504 | B24: 1 | C24: 1,200.00 € | D24: =B24*C24 -> 1,200.00 €
A25: MG | B25: 1 | C25: 1,200.00 € | D25: =B25*C25 -> 1,200.00 €
A26: Coût du financement des véhicules | D26: ='Charges '!E8 -> 0.00 €
A27: Coût de structure | D27: =D28+D29 -> 450.00 €
A28: Frais administratifs (Comptable …) | B28: 1 | C28: 200.00 € | D28: =B28*C28 -> 200.00 €
A29: Frais commerciaux (Com, Repas…) | B29: 1 | C29: 250.00 € | D29: =B29*C29 -> 250.00 €
A30: Frais bancaires | D30: =D31+D32+D33 -> 381.71 €
A31: Gestion Compte | B31: 12 | C31: 12.50 € | D31: =B31*C31 -> 150.00 €
A32: Assurances | B32: 1 | C32: 39.96 € | D32: =B32*C32 -> 39.96 €
A33: Assurances RC PRO | B33: 1 | C33: 191.75 € | D33: =B33*C33 -> 191.75 €
A34: Panier Confort | B34: 23 | C34: 50.00 € | D34: =B34*C34 -> 1,150.00 €
A35: Total | D35: =D4+D19+D34 -> 13,006.71 € | E35: Total | H35: =SUM(H4:H34) -> 18,400.00 €
A36: Solde | H36: =H35-D35 -> 5,393.29 €
A37: Impôts Divers | H37: =H38+H39 -> 401.12 €
A38: Impôts libératoires (1,7%) | E38: 1.70% | G38: 1.70% | H38: =H35*G38 -> 312.80 €
A39: Taxes CMA (0,48% | E39: 0.48% | G39: 0.48% | H39: =H35*G39 -> 88.32 €
A40: Solde | H40: =H36-H37 -> 4,992.17 €
A42: Coût au Km | B42: Montant
A43: Coût au Km Charges Variables | B43: =(D4-D13)/K2 -> 1.45 €
A44: Coût au Km Charges Fixes | B44: =D19/K2 -> 1.13 €
A45: Coût au Km Panier Confort | B45: =D34/K2 -> 0.38 € | D45: =80*B45 -> 30.67 €
A46: Coût Total au Km | B46: =B43+B44+B45 -> 2.97 €
A48: Recette au Km (marge 30%) | B48: =H35/K2 -> 6.13 €

Sheet CodePostal
A1: Ville | B1: Code
A2: Saint-Denis | B2: 97400
A3: Saint-Pierre | B3: 97410
A4: Bois de Nèfles Saint-Paul | B4: 97411
A5: Bras-Panon | B5: 97412
A6: Cilaos | B6: 97413
A7: Entre-Deux | B7: 97414
A8: La Chaloupe Saint-Leu | B8: 97416
A9: Saint-Bernard | B9: 97417
A10: La Montagne | B10: 97417
A11: Plaine des Cafres | B11: 97418
A12: La Possession | B12: 97419
A13: Le Port | B13: 97420
A14: La Rivière Saint-Louis | B14: 97421
A15: La Saline | B15: 97422
A16: Le Guillaume | B16: 97423
A17: Piton Saint-Leu | B17: 97424
A18: Les Avirons | B18: 97425
A19: Trois-Bassins | B19: 97426
A20: Etang-Salé | B20: 97427
A21: Petite-Ile | B21: 97429
A22: Le Tampon | B22: 97430
A23: Plaine des Palmistes | B23: 97431
A24: La Ravine-Des-Cabris | B24: 97432
A25: Salazie | B25: 97433
A26: Saint-Gilles les Bains | B26: 97434
A27: Bernica | B27: 97435
A28: Saint-Gilles les Hauts | B28: 97435
A29: La Saline-Les-Bains | B29: 97434
A30: Tan-Rouge | B30: 97435
A31: Saint-Leu | B31: 97436
A32: Sainte-Anne | B32: 97437
A33: La Rivière des Pluies | B33: 97438
A34: Sainte-Marie | B34: 97438
A35: Sainte-Rose | B35: 97439
A36: Saint-André | B36: 97440
A37: Sainte-Suzanne | B37: 97441
A38: Basse-Vallée | B38: 97442
A39: Saint-Philippe | B39: 97442
A40: Saint-Louis | B40: 97450
A41: Saint-Paul | B41: 97460
A42: Saint-Benois | B42: 97470
A43: Saint-Joseph | B43: 97480
A44: Bois de Nèfles Sainte-Clotilde | B44: 97490

Sheet Devis
B1: Devis
B2: Date: | C2: 23/02/2021
A3: N° Devis:
D4: Nom:
D5: Adresse:
D6: Code postal:
A9: Date Evènement :
A11: Désignation | B11: Qté | C11: PU | D11: Montant HT
A13: Total HT | D13: =SUBTOTAL(109,Devis[Montant HT]) -> 0 €
B14: TVA | C14: 8.50% | D14: =Devis[[#Totals],[Montant HT]]*C14 -> 0.00 €
B15: Total TTC | D15: =Devis[[#Totals],[Montant HT]]+D14 -> 0.00 €
B16: Remise | C16: 10% | D16: =D15*C16 -> 0.00 €
B17: A Régler | D17: =D15-D16 -> 0.00 €
B18: Acompte | C18: 40% | D18: =D17*C18 -> 0.00 €
B19: Solde | D19: =D17-D18 -> 0.00 €
B20: TVA non applicable - Article 293B du CGI
B22: Signature Client (Bon pour Accord en manuscrit)
A23: Validité du devis : 2 mois
A24: Acompte de 40% à la signature du Devis
A25: Le Solde, selon les conditions du CGV

Sheet Archive Devis
A1: N°Devis | B1: Date Devis | C1: Date de Modification | D1: Nom | E1: Adresse | F1: Code Postal Ville | G1: Date Evènement | H1: Désignation | I1: Qté | J1: Prix Unitaire | K1: Montant HT | L1: Estimatif Km | M1: Estimatif Temps Travail | N1: Panier Confort | O1: Remise
A2: 2021-001 | B2: 23/02/2021 | D2: Papangues Reine | E2: 5 rue des Daturas | F2: 97 429 Petite-Ile | G2: samedi 18 décembre 2021 | H2: Location avec Chauffeur: Forfait 504 Peugeot | I2: 1 | J2: 136 € | K2: 136 €

Sheet DevisModifié
B1: Devis Modifié
A2: Date Modification:
A3: Date Devis initial:
A4: N° Devis:
D5: Nom:
D6: Adresse:
D7: Code postal:
A10: Date Evènement :
A12: Désignation | B12: Quantité | C12: P.U. | D12: Montant H.T.
A14: Total HT | D14: =SUBTOTAL(109,Devis6[Montant H.T.]) -> 0.00 €
B15: TVA | C15: 8.50% | D15: =Devis6[[#Totals],[Montant H.T.]]*C15 -> 0.00 €
B16: Total TTC | D16: =Devis6[[#Totals],[Montant H.T.]]+D15 -> 0.00 €
B17: Remise | C17: 10% | D17: =D16*C17 -> 0.00 €
B18: A Régler | D18: =D16-D17 -> 0.00 €
B19: Acompte | C19: 40% | D19: =D18*C19 -> 0.00 €
B20: Solde | D20: =D18-D19 -> 0.00 €

Sheet Archive DevisModif
A1: N°Devis | B1: Date Devis | C1: Date de Modification | D1: Nom | E1: Adresse | F1: Code Postal Ville | G1: Date Evènement | H1: Désignation | I1: Qté | J1: Prix Unitaire | K1: Montant HT | L1: Estimatif Km | M1: Estimatif Temps Travail | N1: Panier Confort | O1: Remise

Sheet numerotation
A1: Numérotation Devis
A2: 000
